bitfinex/quotes_SOLUSD_20241101
["timestamp","ask_amount","ask_price","bid_price","bid_amount"]
[1730477157014,69.49943486,164.94,164.89,45.72255086]
[1730477157224,69.49943486,164.94,164.78,6.2797]
[1730477157225,45.72255086,164.93,164.88,45.72255086]
[1730477157400,23.776884,164.94,164.89,45.72255086]
[1730477157401,23.776884,164.92,164.89,45.72255086]
[1730477157600,23.776884,164.93,164.88,45.72255086]
[1730477158213,23.776884,164.93,164.8,60.89175086]
[1730477158214,23.776884,164.91,164.87,45.72255086]
[1730477158416,69.49943486,164.91,164.85,45.72255086]
[1730477158609,23.776884,164.91,164.86,46.32260076]
[1730477158911,23.776884,164.91,164.88,45.72255086]
[1730477160022,23.776884,164.9,164.87,45.72255086]
[1730477160413,23.776884,164.91,164.88,45.72255086]
[1730477160732,23.776884,164.91,164.87,45.72255086]
[1730477160918,23.776884,164.91,164.86,46.32260076]
[1730477161323,29.859284,164.91,164.87,45.72255086]
[1730477161630,23.776884,164.87,164.86,0.6000499]
[1730477161802,69.49943486,164.87,164.86,0.6000499]
[1730477162003,75.56473486,164.87,164.86,0.6000499]
[1730477162506,90.72813486,164.87,164.79,45.72255086]
[1730477162706,90.72813486,164.87,164.78,28.30847574]
[1730477162707,28.30847574,164.83,164.78,28.30847574]
[1730477163216,28.30847574,164.82,164.76,28.30847574]
[1730477163419,28.30847574,164.81,164.76,28.30847574]
[1730477164617,23.776884,164.8,164.75,46.01229229]
[1730477164820,23.776884,164.8,164.71,15.1775]
[1730477164821,46.01229229,164.79,164.74,46.01229229]
[1730477165027,23.776884,164.8,164.76,46.01229229]
[1730477165321,69.78917629,164.8,164.75,46.01229229]
[1730477165705,23.776884,164.8,164.76,46.01229229]
[1730477165926,52.07919229,164.83,164.78,46.01229229]
[1730477166224,23.776884,164.82,164.77,46.01229229]
[1730477166429,46.01229229,164.87,164.81,46.01229229]
[1730477166631,46.01229229,164.89,164.83,46.01229229]
[1730477166816,6.0642,164.9,164.84,46.01229229]
[1730477166817,46.01229229,164.9,164.84,46.01229229]
[1730477167016,46.01229229,164.87,164.81,46.01229229]
[1730477167315,46.01229229,164.84,164.78,46.01229229]
[1730477167504,46.01229229,164.81,164.76,46.01229229]
[1730477168010,46.01229229,164.8,164.75,46.01229229]
[1730477168333,15.1658,164.85,164.76,46.01229229]
[1730477168334,46.01229229,164.81,164.76,46.01229229]
[1730477168537,23.776884,164.8,164.76,46.01229229]
[1730477168703,23.776884,164.81,164.78,46.01229229]
[1730477169035,23.776884,164.83,164.79,46.01229229]
[1730477169734,52.07759229,164.87,164.82,46.01229229]
[1730477170233,46.01229229,164.88,164.82,46.01229229]
[1730477170409,52.07729229,164.88,164.82,46.01229229]
[1730477170911,46.01229229,164.87,164.82,46.01229229]
[1730477171233,23.776884,164.87,164.82,46.01229229]
[1730477171427,52.07689229,164.9,164.84,46.01229229]
[1730477171924,46.01229229,164.88,164.82,46.01229229]
[1730477172107,52.09469229,164.91,164.85,46.01229229]
[1730477172426,61.38119229,164.96,164.8,46.01229229]
[1730477172427,46.01229229,164.94,164.88,46.01229229]
[1730477172630,46.01229229,164.94,164.89,46.01229229]
[1730477172835,6.0624,164.95,164.8,46.01229229]
[1730477172836,46.01229229,164.95,164.9,46.01229229]
[1730477173052,52.65299229,164.96,164.91,46.01229229]
[1730477173212,46.01229229,164.98,164.93,46.01229229]
[1730477173532,46.01229229,164.98,164.8,61.73599229]
[1730477173533,46.01229229,164.94,164.89,46.01229229]
[1730477173740,46.01229229,164.92,164.86,46.01229229]
[1730477173913,46.01229229,164.92,164.87,46.01229229]
[1730477174115,6.31543258,164.97,164.87,46.01229229]
[1730477174116,52.07559229,164.93,164.87,46.01229229]
[1730477174433,6.0633,164.93,164.89,46.01229229]
[1730477174616,6.0633,164.93,164.88,46.01229229]
[1730477174815,89.78917629,164.93,164.88,46.01229229]
[1730477175021,23.776884,164.95,164.91,46.01229229]
[1730477175209,69.78917629,164.95,164.89,46.01229229]
[1730477175415,69.78917629,164.93,164.88,46.01229229]
[1730477175720,23.776884,164.95,164.82,15.168]
[1730477176031,23.776884,164.93,164.8,61.73599229]
[1730477176230,23.776884,164.91,164.8,15.7237]
[1730477176429,23.776884,164.91,164.79,6.0521]
[1730477176430,23.776884,164.89,164.79,12.1204]
[1730477176735,20.0,164.86,164.79,27.2912]
[1730477176946,20.0,164.88,164.85,46.01229229]
[1730477177435,20.0,164.91,164.87,46.01229229]
[1730477177738,46.01229229,164.93,164.87,46.01229229]
[1730477178440,46.01229229,164.92,164.87,46.01229229]
[1730477178634,23.776884,164.91,164.87,46.01229229]
[1730477179141,20.0,164.9,164.87,46.01229229]
[1730477179846,0.77320595,165.0,164.89,46.01229229]
[1730477180019,46.01229229,165.0,164.95,46.01229229]
[1730477180219,46.01229229,165.01,164.95,46.01229229]
[1730477180422,63.27765657,165.03,164.97,46.01229229]
[1730477180738,46.01229229,164.99,164.93,46.01229229]
[1730477181134,46.01229229,164.99,164.94,46.01229229]
[1730477181334,46.01229229,165.02,164.97,46.01229229]
[1730477181639,11.20586428,165.03,164.98,46.01229229]
[1730477182025,63.27765657,165.03,164.97,46.01229229]
[1730477182225,46.01229229,165.02,164.96,46.01229229]
[1730477182438,46.01229229,165.02,164.97,46.01229229]
[1730477183027,20.0,165.01,164.96,46.01229229]
[1730477183347,20.0,165.0,164.98,46.01229229]
[1730477183932,57.21815657,165.03,164.91,21.2229]
[1730477183933,20.0,165.02,164.99,46.01229229]
[1730477184221,11.20586428,165.03,165.01,46.01229229]
[1730477184429,11.20586428,165.03,165.02,46.01229229]
[1730477184639,63.27775657,165.03,164.91,21.2229]
[1730477184829,46.01229229,165.01,164.91,21.2229]
[1730477185225,17.26546428,165.03,164.91,21.2229]
[1730477185226,17.26546428,165.03,164.91,15.159]
[1730477185430,17.26546428,165.03,164.9,6.5404]
[1730477185628,23.776884,164.99,164.85,6.4361]
[1730477185853,23.776884,164.95,164.82,16.1063]
[1730477186026,20.0,164.89,164.87,46.01229229]
[1730477186347,20.0,164.89,164.85,46.01229229]
[1730477186523,20.0,164.88,164.83,28.28355233]
[1730477186727,20.0,164.88,164.84,28.28355233]
[1730477186933,20.0,164.88,164.82,37.3414]
[1730477187227,23.776884,164.96,164.82,31.2743]
[1730477187450,20.0,164.95,164.82,31.2743]
[1730477187657,20.0,165.01,164.82,31.2743]
[1730477187836,28.28355233,164.99,164.93,28.28355233]
[1730477188038,20.0,165.01,164.88,28.28355233]
[1730477188039,48.28355233,164.97,164.92,28.28355233]
[1730477188359,28.28355233,164.99,164.93,28.28355233]
[1730477188533,28.28355233,165.01,164.95,28.28355233]
[1730477189250,28.28355233,164.98,164.92,28.28355233]
[1730477189440,28.28355233,164.94,164.89,28.28355233]
[1730477189751,20.0,164.93,164.88,28.28355233]
[1730477189957,20.0,164.93,164.86,6.018]
[1730477189958,20.0,164.93,164.89,28.28355233]
[1730477190262,23.776884,164.97,164.92,28.28355233]
[1730477190434,20.0,164.96,164.93,28.28355233]
[1730477190635,20.0,164.96,164.93,45.9089929]
[1730477191650,14.67746568,164.96,164.92,45.9089929]
[1730477191852,45.9089929,164.95,164.9,45.9089929]
[1730477192036,45.9089929,164.95,164.86,36.3467]
[1730477192037,45.9089929,165.03,164.94,62.2916929]
[1730477192236,6.058,165.07,164.94,16.3827]
[1730477192457,45.9089929,165.05,164.94,16.3827]
[1730477192832,45.9089929,165.04,164.94,16.3827]
[1730477193074,45.9089929,165.03,164.98,45.9089929]
[1730477193232,45.9089929,165.02,164.96,45.9089929]
[1730477193433,45.9089929,165.02,164.88,69.6858769]
[1730477193434,45.9089929,164.98,164.92,61.0677929]
[1730477193666,20.0,165.0,164.92,21.2223]
[1730477193955,21.2005,165.09,164.92,21.2223]
[1730477193956,20.0,165.08,164.92,21.2223]
[1730477194158,20.0,165.01,164.96,45.9089929]
[1730477194538,20.0,165.0,164.96,45.9089929]
[1730477194945,45.9089929,164.99,164.93,45.9089929]
[1730477195350,65.9089929,164.98,164.92,45.9089929]
[1730477195546,45.9089929,164.96,164.9,45.9089929]
[1730477195744,20.0,164.94,164.91,45.9089929]
[1730477195943,45.9089929,164.99,164.93,45.9089929]
[1730477196151,76.1909929,165.12,164.89,21.226]
[1730477196361,45.9089929,165.12,164.89,51.5492]
[1730477196566,6.0573,165.09,164.89,51.5492]
[1730477197241,45.9089929,165.04,164.98,45.9089929]
[1730477197565,20.0,165.05,165.0,45.9089929]
[1730477197741,20.0,165.05,165.01,45.9089929]
[1730477198156,20.0,165.05,165.0,45.9089929]
[1730477198785,20.0,165.05,165.01,45.9089929]
[1730477199066,45.9089929,165.08,165.03,45.9089929]
[1730477199365,45.9089929,165.36,165.09,20.0]
[1730477199536,30.8876209,165.27,165.1,23.776884]
[1730477199742,16.58980052,165.25,165.09,20.0]
[1730477199936,6.0516,165.25,165.06,15.4231]
[1730477200140,6.3092,165.23,164.99,57.5895]
[1730477200339,10.07269981,165.22,164.99,57.5895]
[1730477200563,45.9089929,165.09,165.03,45.9089929]
[1730477201058,20.0,165.08,165.03,45.9089929]
[1730477201285,45.9089929,165.2,164.96,45.9089929]
[1730477201286,65.9089929,165.06,165.0,45.9089929]
[1730477201560,20.0,165.02,164.97,45.9089929]
[1730477201758,20.0,165.02,164.98,45.9089929]
[1730477201965,20.0,165.02,165.01,45.9089929]
[1730477202343,20.0,165.06,165.01,45.9089929]
[1730477202544,20.0,165.04,165.02,45.9089929]
[1730477202948,20.0,165.04,165.03,45.9089929]
[1730477203271,45.9089929,165.12,165.03,45.9089929]
[1730477203567,45.9089929,165.13,165.07,45.9089929]
[1730477203770,45.9089929,165.1,164.99,21.2133]
[1730477204065,45.9089929,165.1,165.04,45.9089929]
[1730477204276,45.9089929,165.11,165.05,45.9089929]
[1730477204638,45.9089929,165.09,165.04,45.9089929]
[1730477204871,45.9089929,165.1,165.04,45.9089929]
[1730477205042,43.776884,165.09,165.04,45.9089929]
[1730477205238,43.776884,165.09,165.0,21.2117]
[1730477205464,43.776884,165.09,165.04,45.9089929]
[1730477205671,43.776884,165.05,165.0,45.9089929]
[1730477205842,43.776884,165.05,165.01,45.9089929]
[1730477206468,89.6858769,165.05,164.99,45.9089929]
[1730477206677,89.6858769,165.05,164.85,1.49593294]
[1730477206678,43.776884,165.05,165.0,45.9089929]
[1730477208165,20.0,165.05,165.03,45.9089929]
[1730477208467,23.776884,165.07,165.04,45.9089929]
[1730477208780,20.0,165.06,165.04,45.9089929]
[1730477209264,20.0,165.08,165.03,45.9089929]
[1730477209645,45.9089929,165.07,165.02,45.9089929]
[1730477209850,20.0,165.06,165.02,45.9089929]
[1730477210049,20.0,165.02,164.98,45.9089929]
[1730477210265,20.0,165.02,164.99,45.9089929]
[1730477210768,20.0,165.02,164.95,6.0623]
[1730477210769,54.28809713,165.08,165.01,28.23039713]
[1730477210967,23.776884,165.05,165.01,28.23039713]
[1730477211269,23.776884,165.05,164.95,21.2184]
[1730477211270,20.0,165.02,164.98,28.23039713]
[1730477211469,20.0,165.02,164.95,21.2184]
[1730477211672,20.0,165.04,164.95,21.2184]
[1730477211969,20.0,165.04,164.95,15.1561]
[1730477212265,29.833884,165.1,164.95,15.1561]
[1730477212473,6.0551,165.15,164.96,20.0]
[1730477212647,28.23039713,165.14,165.08,28.23039713]
[1730477212844,34.28519713,165.16,165.1,28.23039713]
[1730477213044,40.89239713,165.17,165.11,28.23039713]
[1730477213279,28.23039713,165.17,165.11,28.23039713]
[1730477213478,28.23039713,165.15,165.09,28.23039713]
[1730477214173,28.23039713,165.15,165.04,28.23039713]
[1730477214174,28.23039713,165.17,165.11,28.23039713]
[1730477214483,28.23039713,165.21,165.15,28.23039713]
[1730477214771,28.23039713,165.25,165.2,28.23039713]
[1730477215349,39.42112196,165.26,165.2,28.23039713]
[1730477215564,28.23039713,165.26,165.2,28.23039713]
[1730477215863,28.23039713,165.29,165.23,28.23039713]
[1730477216049,6.1872,165.35,165.13,20.0]
[1730477216258,15.62612576,165.33,165.14,21.194]
[1730477216457,15.62612576,165.33,165.05,36.8456]
[1730477216670,15.62612576,165.33,165.07,20.0]
[1730477216981,15.1212,165.33,165.07,20.0]
[1730477217279,45.7955719,165.25,165.19,45.7955719]
[1730477217573,45.7955719,165.28,165.22,45.7955719]
[1730477217874,45.7955719,165.3,165.26,0.54782485]
[1730477218078,6.1872,165.35,165.28,0.54782485]
[1730477218269,6.1872,165.35,165.26,0.54782485]
[1730477218468,6.30305746,165.34,165.24,0.54713037]
[1730477218669,45.7955719,165.25,165.16,3.5758253]
[1730477218875,0.50616895,165.33,165.17,6.96653478]
[1730477219089,23.776884,165.2,165.18,1.51454509]
[1730477219255,23.776884,165.22,165.18,3.93781724]
[1730477219456,23.776884,165.2,165.19,3.93779592]
[1730477219774,45.7955719,165.24,165.19,3.93779592]
[1730477219955,23.776884,165.23,165.19,3.93779592]
[1730477220151,23.776884,165.25,165.19,3.93779592]
[1730477220353,6.30305746,165.34,165.19,25.12509592]
[1730477220674,6.1872,165.35,165.19,25.12509592]
[1730477220978,45.7955719,165.3,165.24,45.7955719]
[1730477221193,45.7955719,165.32,165.26,45.7955719]
[1730477221488,45.7955719,165.35,165.29,45.7955719]
[1730477221696,45.7955719,165.33,165.27,45.7955719]
[1730477221878,45.7955719,165.33,165.28,45.7955719]
[1730477222059,45.7955719,165.34,165.28,45.7955719]
[1730477222460,45.7955719,165.31,165.25,45.7955719]
[1730477222657,23.776884,165.29,165.25,45.7955719]
[1730477222886,23.776884,165.3,165.26,45.7955719]
[1730477223061,23.776884,165.31,165.27,45.7955719]
[1730477223262,6.30531243,165.4,165.3,45.7955719]
[1730477223565,15.4186,165.41,165.22,43.776884]
[1730477223776,24.8135979,165.43,165.25,20.0]
[1730477223963,0.6000499,165.43,165.27,20.0]
[1730477224165,0.6000499,165.43,165.3,6.4682]
[1730477224677,46.3956218,165.43,165.37,45.7955719]
[1730477225057,0.6000499,165.43,165.42,45.7955719]
[1730477225773,0.6000499,165.43,165.33,16.4465]
[1730477226083,0.6000499,165.43,165.38,45.7955719]
[1730477226683,0.6000499,165.43,165.39,45.7955719]
[1730477226858,0.6000499,165.43,165.42,45.7955719]
[1730477228296,0.6000499,165.43,165.42,51.8407719]
[1730477229875,0.6000499,165.43,165.42,45.7955719]
[1730477230068,0.6000499,165.43,165.41,60.9091719]
[1730477230580,0.6000499,165.43,165.42,45.7955719]
[1730477232568,0.6000499,165.43,165.41,15.1136]
[1730477232993,23.776884,165.42,165.38,45.7955719]
[1730477233283,0.6000499,165.43,165.4,45.7955719]
[1730477233486,0.6000499,165.43,165.42,45.7955719]
[1730477234488,0.6000499,165.43,165.42,51.8407719]
[1730477235960,0.6000499,165.43,165.42,45.7955719]
[1730477236364,0.6000499,165.43,165.42,51.8407719]
[1730477236565,0.6000499,165.43,165.42,97.6363438]
[1730477236965,0.6000499,165.43,165.42,51.8407719]
[1730477237183,0.6000499,165.43,165.42,97.6363438]
[1730477237393,16.3198499,165.59,165.42,97.6363438]
[1730477237394,45.7955719,165.57,165.43,20.0]
[1730477237573,76.5839299,165.58,165.53,45.7955719]
[1730477237763,45.7955719,165.57,165.52,45.7955719]
[1730477238683,23.776884,165.57,165.52,28.04937562]
[1730477238876,23.776884,165.57,165.52,34.09077562]
[1730477239384,0.6000499,165.59,165.55,28.04937562]
[1730477240312,28.04937562,165.56,165.5,28.04937562]
[1730477240587,20.0,165.58,165.53,28.04937562]
[1730477240883,20.0,165.56,165.53,28.04937562]
[1730477241291,0.6000499,165.59,165.45,21.1544]
[1730477241292,23.776884,165.53,165.5,28.04937562]
[1730477241484,23.776884,165.53,165.52,28.04937562]
[1730477241782,28.04937562,165.58,165.52,28.04937562]
[1730477241783,20.0,165.56,165.52,28.04937562]
[1730477242499,23.776884,165.55,165.52,28.04937562]
[1730477242672,0.6000499,165.59,165.54,28.04937562]
[1730477242995,0.6000499,165.59,165.58,28.04937562]
[1730477243296,0.6000499,165.59,165.57,28.04937562]
[1730477243666,0.6000499,165.59,165.55,28.04937562]
[1730477244277,0.6000499,165.59,165.57,28.04937562]
[1730477244468,0.6000499,165.59,165.58,28.04937562]
[1730477244863,0.6000499,165.59,165.58,34.08867562]
[1730477245274,0.6000499,165.59,165.58,28.04937562]
[1730477245492,0.6000499,165.59,165.56,28.04937562]
[1730477245835,23.776884,165.58,165.55,28.04937562]
[1730477246032,23.776884,165.58,165.56,28.04937562]
[1730477246332,0.6000499,165.59,165.57,28.04937562]
[1730477246697,0.6000499,165.59,165.57,34.08897562]
[1730477247211,0.6000499,165.59,165.57,34.08907562]
[1730477247420,0.6000499,165.59,165.54,15.102]
[1730477247421,0.6000499,165.59,165.55,34.08957562]
[1730477247708,0.6000499,165.59,165.57,28.04937562]
[1730477247915,0.6000499,165.59,165.56,28.04937562]
[1730477248095,23.776884,165.58,165.56,28.04937562]
[1730477248496,0.6000499,165.59,165.57,28.04937562]
[1730477248806,0.6000499,165.59,165.58,28.04937562]
[1730477249701,0.6000499,165.59,165.58,56.09875124]
[1730477250103,0.6000499,165.59,165.58,28.04937562]
[1730477250826,28.04937562,165.69,165.58,49.18707562]
[1730477251026,28.04937562,165.69,165.63,28.04937562]
[1730477251321,24.167201,165.75,165.6,28.04937562]
[1730477251506,24.167201,165.75,165.54,30.2034]
[1730477251754,28.04937562,165.63,165.57,28.04937562]
[1730477251909,23.776884,165.64,165.61,28.04937562]
[1730477252116,20.0,165.63,165.61,28.04937562]
[1730477252430,20.0,165.63,165.52,15.1037]
[1730477252431,20.0,165.61,165.52,15.1037]
[1730477252609,51.82625962,165.56,165.52,15.1037]
[1730477252812,20.0,165.55,165.52,21.1452]
[1730477253404,20.0,165.55,165.52,49.19457562]
[1730477253621,20.0,165.53,165.48,43.15637562]
[1730477253819,23.776884,165.52,165.48,49.19937562]
[1730477254015,23.776884,165.52,165.49,28.04937562]
[1730477254720,20.0,165.55,165.51,28.04937562]
[1730477254930,20.0,165.51,165.45,49.20377562]
[1730477255218,28.04937562,165.52,165.46,28.04937562]
[1730477255219,20.0,165.49,165.46,28.04937562]
[1730477255421,6.5323,165.59,165.45,21.1544]
[1730477255589,43.776884,165.58,165.45,21.1544]
[1730477255786,43.776884,165.58,165.45,51.375]
[1730477256592,28.04937562,165.68,165.46,20.0]
[1730477256593,6.0771,165.64,165.46,20.0]
[1730477256771,28.04937562,165.61,165.55,28.04937562]
[1730477256971,28.04937562,165.63,165.57,28.04937562]
[1730477257281,28.04937562,165.62,165.56,28.04937562]
[1730477257594,28.04937562,165.61,165.55,28.04937562]
[1730477257999,28.04937562,165.61,165.48,20.0]
[1730477258000,28.04937562,165.63,165.57,28.04937562]
[1730477258189,28.04937562,165.58,165.52,28.04937562]
[1730477258378,28.04937562,165.68,165.48,20.0]
[1730477258701,20.0,165.67,165.5,20.0]
[1730477258876,28.04937562,165.68,165.52,20.0]
[1730477259076,6.233,165.69,165.52,26.4848]
[1730477259471,6.233,165.69,165.52,6.4848]
[1730477259675,28.04937562,165.61,165.55,28.04937562]
[1730477259879,28.04937562,165.62,165.56,28.04937562]
[1730477260599,51.82625962,165.61,165.55,28.04937562]
[1730477260776,28.04937562,165.6,165.54,28.04937562]
[1730477261096,51.82625962,165.59,165.53,28.04937562]
[1730477261274,23.776884,165.59,165.55,28.04937562]
[1730477261474,28.04937562,165.6,165.54,28.04937562]
[1730477261781,23.776884,165.59,165.55,28.04937562]
[1730477262106,28.04937562,165.58,165.52,34.09067562]
[1730477262392,28.04937562,165.54,165.48,34.09237562]
[1730477262578,23.776884,165.53,165.49,15.1066]
[1730477262890,51.82625962,165.53,165.49,15.1066]
[1730477263106,20.0,165.63,165.49,15.1066]
[1730477263276,28.04937562,165.68,165.49,15.1066]
[1730477263591,6.233,165.69,165.52,20.0]
[1730477263897,6.233,165.69,165.54,20.0]
[1730477264399,28.04937562,165.67,165.61,28.04937562]
[1730477264791,23.776884,165.66,165.61,28.04937562]
[1730477265170,28.04937562,165.69,165.63,28.04937562]
[1730477265375,28.04937562,165.68,165.62,28.04937562]
[1730477265883,28.04937562,165.67,165.61,28.04937562]
[1730477266072,28.04937562,165.65,165.59,28.04937562]
[1730477266278,28.04937562,165.63,165.57,28.04937562]
[1730477266620,28.04937562,165.64,165.58,28.04937562]
[1730477266891,28.04937562,165.68,165.55,21.1415]
[1730477266892,51.82625962,165.63,165.57,28.04937562]
[1730477267277,51.82625962,165.61,165.55,43.15047562]
[1730477267481,51.82625962,165.57,165.51,28.04937562]
[1730477267685,28.04937562,165.56,165.51,15.1039]
[1730477267892,28.04937562,165.57,165.51,43.15327562]
[1730477268901,28.04937562,165.55,165.51,15.1039]
[1730477269108,51.82625962,165.53,165.49,6.0426]
[1730477269397,23.776884,165.56,165.52,28.04937562]
[1730477269603,28.04937562,165.59,165.48,30.2151]
[1730477269900,23.776884,165.61,165.48,30.2151]
[1730477270197,6.5695,165.62,165.48,30.2151]
[1730477270198,51.82625962,165.58,165.53,28.04937562]
[1730477270583,6.5695,165.62,165.55,28.04937562]
[1730477270584,28.04937562,165.6,165.55,28.04937562]
[1730477270790,28.04937562,165.62,165.57,28.04937562]
[1730477271182,28.04937562,165.64,165.58,28.04937562]
[1730477271401,28.04937562,165.64,165.52,44.13027562]
[1730477271402,28.04937562,165.65,165.59,28.04937562]
[1730477271779,28.04937562,165.66,165.6,28.04937562]
[1730477272116,28.04937562,165.65,165.59,28.04937562]
[1730477272296,28.04937562,165.64,165.59,28.04937562]
[1730477272802,28.04937562,165.64,165.58,28.04937562]
[1730477273002,28.04937562,165.62,165.57,28.04937562]
[1730477273187,28.04937562,165.63,165.57,28.04937562]
[1730477273704,28.04937562,165.63,165.58,21.1377]
[1730477274279,28.04937562,165.65,165.59,28.04937562]
[1730477274684,51.82625962,165.64,165.59,28.04937562]
[1730477274904,28.04937562,165.63,165.58,21.1377]
[1730477275303,28.04937562,165.65,165.59,28.04937562]
[1730477275503,23.776884,165.66,165.59,28.04937562]
[1730477275504,28.04937562,165.64,165.59,28.04937562]
[1730477275724,28.04937562,165.64,165.58,49.18707562]
[1730477276332,28.04937562,165.62,165.58,21.1377]
[1730477277030,23.776884,165.64,165.59,28.04937562]
[1730477277334,23.776884,165.64,165.6,28.04937562]
[1730477277635,51.82625962,165.64,165.58,49.18707562]
[1730477278005,23.776884,165.64,165.59,28.04937562]
[1730477278323,28.04937562,165.65,165.6,28.04937562]
[1730477278518,28.04937562,165.64,165.59,28.04937562]
[1730477279023,28.04937562,165.65,165.59,28.04937562]
[1730477279226,28.04937562,165.65,165.6,28.04937562]
[1730477279593,28.04937562,165.65,165.59,49.18587562]
[1730477280085,23.776884,165.61,165.56,34.08907562]
[1730477280290,28.04937562,165.65,165.59,28.04937562]
[1730477280512,28.04937562,165.66,165.6,28.04937562]
[1730477280699,28.04937562,165.67,165.61,28.04937562]
[1730477281215,28.04937562,165.68,165.62,28.04937562]
[1730477281419,28.04937562,165.66,165.61,28.04937562]
[1730477281792,28.04937562,165.64,165.59,28.04937562]
[1730477282110,28.04937562,165.64,165.57,21.139]
[1730477282111,28.04937562,165.64,165.58,28.04937562]
[1730477282412,28.04937562,165.59,165.53,21.1436]
[1730477282622,28.04937562,165.57,165.53,21.1436]
[1730477282792,28.04937562,165.58,165.53,21.1436]
[1730477283188,23.776884,165.63,165.57,28.04937562]
[1730477283408,28.04937562,165.65,165.59,28.04937562]
[1730477283606,23.776884,165.64,165.59,28.04937562]
[1730477283815,28.04937562,165.66,165.6,28.04937562]
[1730477284309,28.04937562,165.66,165.59,6.0386]
[1730477284310,28.04937562,165.65,165.59,28.04937562]
[1730477284520,28.04937562,165.67,165.62,28.04937562]
[1730477285023,28.04937562,165.65,165.6,28.04937562]
[1730477285605,28.04937562,165.66,165.6,28.04937562]
[1730477285807,28.04937562,165.66,165.61,49.18327562]
[1730477286411,6.0346,165.71,165.59,28.04937562]
[1730477286412,28.04937562,165.65,165.59,28.04937562]
[1730477286607,28.04937562,165.66,165.61,28.04937562]
[1730477287025,24.41405625,165.66,165.61,28.04937562]
[1730477287428,24.41405625,165.66,165.6,34.08797562]
[1730477287734,28.04937562,165.65,165.6,6.0386]
[1730477287925,28.04937562,165.66,165.6,49.18457562]
[1730477288433,28.04937562,165.67,165.61,28.04937562]
[1730477288814,28.04937562,165.69,165.63,28.04937562]
[1730477289115,28.04937562,165.67,165.61,28.04937562]
[1730477289417,28.04937562,165.69,165.63,28.04937562]
[1730477289714,28.04937562,165.69,165.64,28.04937562]
[1730477289920,28.04937562,165.7,165.65,6.0368]
[1730477290115,28.04937562,165.69,165.65,6.0368]
[1730477290330,28.04937562,165.73,165.67,28.04937562]
[1730477290635,28.04937562,165.74,165.68,28.04937562]
[1730477290926,28.04937562,165.75,165.69,28.04937562]
[1730477291143,0.6000499,165.76,165.71,28.04937562]
[1730477291513,28.64942552,165.76,165.7,28.04937562]
[1730477291713,28.04937562,165.75,165.69,28.04937562]
[1730477292024,28.64942552,165.76,165.71,28.04937562]
[1730477292331,0.6000499,165.76,165.71,28.04937562]
[1730477294734,0.6000499,165.76,165.72,28.04937562]
[1730477294931,0.6000499,165.76,165.71,28.04937562]
[1730477295132,0.6000499,165.76,165.73,28.04937562]
[1730477295337,0.6000499,165.76,165.71,28.04937562]
[1730477295543,0.6000499,165.76,165.7,21.1225]
[1730477295544,28.04937562,165.75,165.7,49.17187562]
[1730477295714,28.04937562,165.74,165.7,15.0875]
[1730477296038,28.04937562,165.75,165.7,15.0875]
[1730477296444,28.04937562,165.74,165.7,15.0875]
[1730477296737,28.04937562,165.72,165.67,28.04937562]
[1730477296930,28.04937562,165.74,165.68,28.04937562]
[1730477297133,28.04937562,165.72,165.66,28.04937562]
[1730477297441,28.04937562,165.7,165.64,28.04937562]
[1730477297645,28.04937562,165.68,165.62,28.04937562]
[1730477297936,28.04937562,165.67,165.61,49.18327562]
[1730477298120,28.04937562,165.66,165.61,15.0957]
[1730477298319,28.04937562,165.66,165.6,28.04937562]
[1730477298320,28.04937562,165.65,165.6,28.04937562]
[1730477298631,28.04937562,165.67,165.62,28.04937562]
[1730477298941,28.04937562,165.67,165.61,28.04937562]
[1730477299238,28.04937562,165.7,165.64,28.04937562]
[1730477299444,23.776884,165.75,165.67,28.04937562]
[1730477299445,20.0,165.71,165.67,28.04937562]
[1730477299643,28.64942552,165.76,165.7,28.04937562]
[1730477299822,0.6000499,165.76,165.72,28.04937562]
[1730477300023,28.04937562,165.73,165.61,20.0]
[1730477300246,28.04937562,165.7,165.6,79.37757562]
[1730477300453,28.04937562,165.67,165.61,28.04937562]
[1730477300634,28.04937562,165.66,165.6,15.0966]
[1730477300836,20.0,165.65,165.61,28.04937562]
[1730477301041,28.04937562,165.7,165.64,28.04937562]
[1730477301229,28.04937562,165.71,165.65,28.04937562]
[1730477301425,43.776884,165.7,165.6,43.14597562]
[1730477301621,43.776884,165.7,165.66,28.04937562]
[1730477301821,20.0,165.7,165.68,28.04937562]
[1730477302051,23.776884,165.74,165.69,28.04937562]
[1730477302244,0.6000499,165.76,165.73,28.04937562]
[1730477302433,0.6000499,165.76,165.68,28.04937562]